[Event "Titled Tuesday Blitz December 27 Late 2022"]
[White "Rian, Kapriaga"]
[Black "Mitrovic, Darko R"]
[WhiteFideId "7103263"]
[BlackFideId "927023"]
[WhiteElo "2089"]
[BlackElo "2220"]
[Result "1-0"]
[Round "04"]
[TimeControl "180+2"]
[Date "2022.12.27"]
[WhiteClock "0:00:53"]
[BlackClock "0:00:04"]

1. d4 {[%clk 0:03:00]}  Nf6 {[%clk 0:02:59]} 2. Nf3 {[%clk 0:03:00]}  b6 {[%clk 0:02:59]} 3. Bf4 {[%clk 0:02:59]}  e6 {[%clk 0:02:59]} 4. e3 {[%clk 0:02:59]}  Bb7 {[%clk 0:02:57]} 5. Bd3 {[%clk 0:02:57]}  d5 {[%clk 0:02:58]} 6. Nbd2 {[%clk 0:02:55]}  Bd6 {[%clk 0:02:58]} 7. Ne5 {[%clk 0:02:55]}  Nbd7 {[%clk 0:02:54]} 8. O-O {[%clk 0:02:54]}  O-O {[%clk 0:02:54]} 9. c3 {[%clk 0:02:53]}  Ne4 {[%clk 0:02:53]} 10. Qe2 {[%clk 0:02:46]}  f6 {[%clk 0:02:47]} 11. Nxd7 {[%clk 0:02:46]}  Qxd7 {[%clk 0:02:47]} 12. Bxd6 {[%clk 0:02:46]}  Qxd6 {[%clk 0:02:44]} 13. f4 {[%clk 0:02:30]}  Nxd2 {[%clk 0:02:37]} 14. Qxd2 {[%clk 0:02:29]}  e5 {[%clk 0:02:37]} 15. fxe5 {[%clk 0:02:14]}  fxe5 {[%clk 0:02:36]} 16. Rxf8+ {[%clk 0:02:13]}  Rxf8 {[%clk 0:02:35]} 17. Rf1 {[%clk 0:02:13]}  Rxf1+ {[%clk 0:02:35]} 18. Bxf1 {[%clk 0:02:09]}  exd4 {[%clk 0:02:30]} 19. exd4 {[%clk 0:02:08]}  Bc8 {[%clk 0:02:28]} 20. Bd3 {[%clk 0:02:06]}  c5 {[%clk 0:01:59]} 21. Qe3 {[%clk 0:02:05]}  Be6 {[%clk 0:01:52]} 22. a3 {[%clk 0:02:03]}  g6 {[%clk 0:01:40]} 23. Qf2 {[%clk 0:01:55]}  Kg7 {[%clk 0:01:35]} 24. Qe3 {[%clk 0:01:54]}  a5 {[%clk 0:01:28]} 25. h4 {[%clk 0:01:45]}  Bg4 {[%clk 0:01:04]} 26. Qg5 {[%clk 0:01:36]}  Qe6 {[%clk 0:00:58]} 27. Kf2 {[%clk 0:01:29]}  cxd4 {[%clk 0:00:47]} 28. cxd4 {[%clk 0:01:29]}  h6 {[%clk 0:00:39]} 29. Qe3 {[%clk 0:01:26]}  Qxe3+ {[%clk 0:00:33]} 30. Kxe3 {[%clk 0:01:26]}  g5 {[%clk 0:00:32]} 31. g3 {[%clk 0:01:19]}  Kf6 {[%clk 0:00:30]} 32. Bf1 {[%clk 0:01:10]}  Ke6 {[%clk 0:00:14]} 33. Bg2 {[%clk 0:01:09]}  b5 {[%clk 0:00:11]} 34. Kd3 {[%clk 0:01:05]}  Bf5+ {[%clk 0:00:06]} 35. Ke3 {[%clk 0:01:05]}  b4 {[%clk 0:00:05]} 36. Bf3 {[%clk 0:01:03]}  bxa3 {[%clk 0:00:05]} 37. bxa3 {[%clk 0:01:02]}  Bc2 {[%clk 0:00:05]} 38. Bg4+ {[%clk 0:01:01]}  Kd6 {[%clk 0:00:05]} 39. Bh3 {[%clk 0:00:57]}  Bh7 {[%clk 0:00:04]} 40. Kf3 {[%clk 0:00:53]} 1-0


[Site "https://www.chess.com"]

[Event "Titled Tuesday Blitz December 27 Late 2022"]
[White "Ronka, Erik"]
[Black "Andrews, Todd"]
[WhiteFideId "505080"]
[BlackFideId "2012456"]
[WhiteElo "2276"]
[BlackElo "2220"]
[Result "1-0"]
[Round "04"]
[TimeControl "180+2"]
[Date "2022.12.27"]
[WhiteClock "0:00:17"]
[BlackClock "0:00:23"]

1. d4 {[%clk 0:03:00]}  Nf6 {[%clk 0:02:56]} 2. Nf3 {[%clk 0:03:01]}  c5 {[%clk 0:02:56]} 3. d5 {[%clk 0:03:01]}  b5 {[%clk 0:02:56]} 4. c3 {[%clk 0:03:00]}  Bb7 {[%clk 0:02:57]} 5. e4 {[%clk 0:03:00]}  Nxe4 {[%clk 0:02:54]} 6. Bxb5 {[%clk 0:03:00]}  Nf6 {[%clk 0:02:54]} 7. c4 {[%clk 0:02:59]}  g6 {[%clk 0:02:52]} 8. O-O {[%clk 0:02:59]}  Bg7 {[%clk 0:02:53]} 9. Re1 {[%clk 0:02:59]}  O-O {[%clk 0:02:53]} 10. Nc3 {[%clk 0:03:00]}  d6 {[%clk 0:02:53]} 11. Bg5 {[%clk 0:03:00]}  Nbd7 {[%clk 0:02:52]} 12. Qd2 {[%clk 0:02:57]}  Nb6 {[%clk 0:02:50]} 13. Qe2 {[%clk 0:02:28]}  a6 {[%clk 0:02:33]} 14. Ba4 {[%clk 0:02:28]}  Nxa4 {[%clk 0:02:33]} 15. Nxa4 {[%clk 0:02:29]}  Re8 {[%clk 0:02:32]} 16. Rad1 {[%clk 0:02:27]}  Rb8 {[%clk 0:02:23]} 17. Qc2 {[%clk 0:02:07]}  Bc8 {[%clk 0:02:20]} 18. Nc3 {[%clk 0:02:05]}  Bf5 {[%clk 0:02:19]} 19. Qd2 {[%clk 0:02:05]}  Qa5 {[%clk 0:01:55]} 20. Bxf6 {[%clk 0:02:00]}  Bxf6 {[%clk 0:01:53]} 21. Ne4 {[%clk 0:02:00]}  Qxd2 {[%clk 0:01:53]} 22. Nxf6+ {[%clk 0:02:00]}  exf6 {[%clk 0:01:53]} 23. Rxd2 {[%clk 0:01:59]}  Rxe1+ {[%clk 0:01:47]} 24. Nxe1 {[%clk 0:02:00]}  Re8 {[%clk 0:01:46]} 25. Kf1 {[%clk 0:01:55]}  Kg7 {[%clk 0:01:34]} 26. f3 {[%clk 0:01:55]}  Bd7 {[%clk 0:01:34]} 27. Kf2 {[%clk 0:01:54]}  f5 {[%clk 0:01:34]} 28. g3 {[%clk 0:01:53]}  h5 {[%clk 0:01:33]} 29. Ng2 {[%clk 0:01:53]}  Kf6 {[%clk 0:01:28]} 30. f4 {[%clk 0:01:24]}  Rb8 {[%clk 0:01:24]} 31. Ne3 {[%clk 0:01:21]}  a5 {[%clk 0:01:22]} 32. Nd1 {[%clk 0:01:15]}  a4 {[%clk 0:01:18]} 33. Ne3 {[%clk 0:00:55]}  Rb4 {[%clk 0:01:14]} 34. Ke2 {[%clk 0:00:53]}  Bc8 {[%clk 0:01:11]} 35. Kd3 {[%clk 0:00:53]}  Ba6 {[%clk 0:01:09]} 36. Kc3 {[%clk 0:00:53]}  Rb8 {[%clk 0:01:03]} 37. b3 {[%clk 0:00:42]}  axb3 {[%clk 0:00:56]} 38. axb3 {[%clk 0:00:43]}  Re8 {[%clk 0:00:55]} 39. Nc2 {[%clk 0:00:43]}  h4 {[%clk 0:00:47]} 40. b4 {[%clk 0:00:34]}  cxb4+ {[%clk 0:00:45]} 41. Nxb4 {[%clk 0:00:35]}  Re3+ {[%clk 0:00:38]} 42. Rd3 {[%clk 0:00:35]}  Rxd3+ {[%clk 0:00:37]} 43. Kxd3 {[%clk 0:00:35]}  hxg3 {[%clk 0:00:35]} 44. hxg3 {[%clk 0:00:35]}  Bb7 {[%clk 0:00:35]} 45. Kd4 {[%clk 0:00:28]}  g5 {[%clk 0:00:36]} 46. c5 {[%clk 0:00:22]}  dxc5+ {[%clk 0:00:36]} 47. Kxc5 {[%clk 0:00:23]}  Kg6 {[%clk 0:00:33]} 48. Kd6 {[%clk 0:00:21]}  gxf4 {[%clk 0:00:32]} 49. gxf4 {[%clk 0:00:22]}  Kh5 {[%clk 0:00:32]} 50. Ke5 {[%clk 0:00:22]}  Kg4 {[%clk 0:00:32]} 51. d6 {[%clk 0:00:18]}  Bc8 {[%clk 0:00:30]} 52. Nd5 {[%clk 0:00:18]}  Be6 {[%clk 0:00:28]} 53. Nf6+ {[%clk 0:00:17]}  Kf3 {[%clk 0:00:25]} 54. d7 {[%clk 0:00:16]}  Bxd7 {[%clk 0:00:25]} 55. Nxd7 {[%clk 0:00:17]}  Kg4 {[%clk 0:00:24]} 56. Nf6+ {[%clk 0:00:17]}  Kf3 {[%clk 0:00:24]} 57. Kxf5 {[%clk 0:00:17]}  Ke3 {[%clk 0:00:24]} 58. Ng4+ {[%clk 0:00:17]}  Kf3 {[%clk 0:00:25]} 59. Nh6 {[%clk 0:00:16]}  f6 {[%clk 0:00:24]} 60. Ng4 {[%clk 0:00:15]}  Kg3 {[%clk 0:00:23]} 61. Nxf6 {[%clk 0:00:16]}  Kf3 {[%clk 0:00:23]} 62. Nd5 {[%clk 0:00:17]}  Kg3 {[%clk 0:00:23]} 63. Ke5 {[%clk 0:00:17]} 1-0


[Site "https://www.chess.com"]

[Event "Titled Tuesday Blitz December 27 Late 2022"]
[White "Samsonkin, Artiom"]
[Black "Bortnyk, Olexandr"]
[WhiteFideId "13503111"]
[BlackFideId "14120828"]
[WhiteElo "2420"]
[BlackElo "2605"]
[Result "0-1"]
[Round "04"]
[TimeControl "180+2"]
[Date "2022.12.27"]
[WhiteClock "0:00:22"]
[BlackClock "0:03:02"]

1. e4 {[%clk 0:03:00]}  Nf6 {[%clk 0:03:00]} 2. e5 {[%clk 0:03:00]}  Nd5 {[%clk 0:03:00]} 3. d4 {[%clk 0:03:00]}  d6 {[%clk 0:03:01]} 4. Nf3 {[%clk 0:03:00]}  dxe5 {[%clk 0:03:01]} 5. Nxe5 {[%clk 0:03:00]}  c6 {[%clk 0:03:02]} 6. Be2 {[%clk 0:02:54]}  Bf5 {[%clk 0:03:02]} 7. O-O {[%clk 0:02:54]}  Nd7 {[%clk 0:03:02]} 8. Nf3 {[%clk 0:02:39]}  e6 {[%clk 0:03:02]} 9. c4 {[%clk 0:02:32]}  N5f6 {[%clk 0:03:03]} 10. Nc3 {[%clk 0:02:32]}  Bd6 {[%clk 0:03:03]} 11. h3 {[%clk 0:02:31]}  O-O {[%clk 0:03:02]} 12. Be3 {[%clk 0:02:31]}  Qc7 {[%clk 0:03:02]} 13. Rc1 {[%clk 0:02:29]}  h6 {[%clk 0:03:01]} 14. Re1 {[%clk 0:02:24]}  Rfe8 {[%clk 0:03:01]} 15. Bd3 {[%clk 0:02:13]}  Bxd3 {[%clk 0:03:00]} 16. Qxd3 {[%clk 0:02:14]}  e5 {[%clk 0:03:00]} 17. dxe5 {[%clk 0:02:09]}  Nxe5 {[%clk 0:03:01]} 18. Nxe5 {[%clk 0:02:09]}  Bxe5 {[%clk 0:03:02]} 19. Qf5 {[%clk 0:02:02]}  Bxc3 {[%clk 0:03:01]} 20. Rxc3 {[%clk 0:01:56]}  Re5 {[%clk 0:03:00]} 21. Qf3 {[%clk 0:01:51]}  Rae8 {[%clk 0:03:01]} 22. Rd1 {[%clk 0:01:47]}  Qa5 {[%clk 0:03:02]} 23. a3 {[%clk 0:01:23]}  Rf5 {[%clk 0:03:02]} 24. Qe2 {[%clk 0:01:24]}  Ne4 {[%clk 0:03:03]} 25. Rcd3 {[%clk 0:01:23]}  Nxf2 {[%clk 0:03:02]} 26. b4 {[%clk 0:01:07]}  Qc7 {[%clk 0:03:02]} 27. Rd7 {[%clk 0:01:05]}  Nxh3+ {[%clk 0:03:01]} 28. Kh1 {[%clk 0:00:51]}  Qe5 {[%clk 0:03:02]} 29. Rd8 {[%clk 0:00:30]}  Nf2+ {[%clk 0:03:02]} 30. Kg1 {[%clk 0:00:22]}  Nxd1 {[%clk 0:03:02]} 0-1


[Site "https://www.chess.com"]

[Event "Titled Tuesday Blitz December 27 Late 2022"]
[White "Schmidt, Harald"]
[Black "Winterberg, Lukas"]
[WhiteFideId "4648358"]
[BlackFideId "24622702"]
[WhiteElo "2347"]
[BlackElo "2402"]
[Result "1-0"]
[Round "04"]
[TimeControl "180+2"]
[Date "2022.12.27"]
[WhiteClock "0:01:31"]
[BlackClock "0:01:49"]

1. e4 {[%clk 0:03:00]}  e6 {[%clk 0:02:58]} 2. d4 {[%clk 0:02:58]}  d5 {[%clk 0:02:58]} 3. Nd2 {[%clk 0:02:58]}  c5 {[%clk 0:02:59]} 4. exd5 {[%clk 0:02:57]}  Qxd5 {[%clk 0:02:59]} 5. Ngf3 {[%clk 0:02:57]}  cxd4 {[%clk 0:03:00]} 6. Bc4 {[%clk 0:02:54]}  Qd7 {[%clk 0:03:00]} 7. Nb3 {[%clk 0:02:52]}  Nc6 {[%clk 0:03:01]} 8. Nbxd4 {[%clk 0:02:51]}  a6 {[%clk 0:03:01]} 9. O-O {[%clk 0:02:49]}  Nxd4 {[%clk 0:03:00]} 10. Qxd4 {[%clk 0:02:48]}  Qxd4 {[%clk 0:03:00]} 11. Nxd4 {[%clk 0:02:48]}  Nf6 {[%clk 0:03:01]} 12. Rd1 {[%clk 0:02:47]}  b5 {[%clk 0:02:57]} 13. Be2 {[%clk 0:02:45]}  Bb7 {[%clk 0:02:57]} 14. a4 {[%clk 0:02:38]}  b4 {[%clk 0:02:54]} 15. a5 {[%clk 0:02:38]}  Be7 {[%clk 0:02:48]} 16. Nb3 {[%clk 0:02:33]}  O-O {[%clk 0:02:45]} 17. Be3 {[%clk 0:02:32]}  Rac8 {[%clk 0:02:45]} 18. Rac1 {[%clk 0:02:14]}  h6 {[%clk 0:02:35]} 19. Kf1 {[%clk 0:02:01]}  Nd5 {[%clk 0:02:31]} 20. Bd2 {[%clk 0:01:55]}  Rc7 {[%clk 0:02:15]} 21. c4 {[%clk 0:01:46]}  bxc3 {[%clk 0:02:12]} 22. bxc3 {[%clk 0:01:45]}  Rfc8 {[%clk 0:02:11]} 23. c4 {[%clk 0:01:45]}  Nb4 {[%clk 0:01:56]} 24. Bf4 {[%clk 0:01:39]}  Rc6 {[%clk 0:01:51]} 25. Bf3 {[%clk 0:01:38]}  Rxc4 {[%clk 0:01:52]} 26. Bxb7 {[%clk 0:01:35]}  R8c7 {[%clk 0:01:49]} 27. Bxc7 {[%clk 0:01:31]} 1-0


[Site "https://www.chess.com"]

[Event "Titled Tuesday Blitz December 27 Late 2022"]
[White "Shtompel, Yuriy"]
[Black "Aguilar, Juan"]
[WhiteFideId "14168278"]
[BlackFideId "3800091"]
[WhiteElo "1938"]
[BlackElo "2254"]
[Result "0-1"]
[Round "04"]
[TimeControl "180+2"]
[Date "2022.12.27"]
[WhiteClock "0:00:02"]
[BlackClock "0:00:07"]

1. e4 {[%clk 0:03:00]}  g6 {[%clk 0:02:59]} 2. d4 {[%clk 0:02:59]}  Bg7 {[%clk 0:03:00]} 3. Nc3 {[%clk 0:02:59]}  d6 {[%clk 0:03:00]} 4. Be3 {[%clk 0:02:51]}  a6 {[%clk 0:03:00]} 5. a4 {[%clk 0:02:46]}  b6 {[%clk 0:02:59]} 6. Qd2 {[%clk 0:02:35]}  Bb7 {[%clk 0:02:55]} 7. f3 {[%clk 0:02:35]}  Nd7 {[%clk 0:02:53]} 8. h4 {[%clk 0:02:33]}  h6 {[%clk 0:02:53]} 9. Bc4 {[%clk 0:02:31]}  e6 {[%clk 0:02:53]} 10. Nge2 {[%clk 0:02:28]}  Ne7 {[%clk 0:02:52]} 11. g4 {[%clk 0:02:19]}  c5 {[%clk 0:02:34]} 12. dxc5 {[%clk 0:02:12]}  Ne5 {[%clk 0:02:18]} 13. O-O-O {[%clk 0:00:53]}  Nxc4 {[%clk 0:02:17]} 14. Qd3 {[%clk 0:00:52]}  Nxe3 {[%clk 0:02:17]} 15. Qxe3 {[%clk 0:00:52]}  bxc5 {[%clk 0:02:15]} 16. f4 {[%clk 0:00:47]}  O-O {[%clk 0:01:27]} 17. f5 {[%clk 0:00:43]}  exf5 {[%clk 0:01:26]} 18. gxf5 {[%clk 0:00:42]}  Nc6 {[%clk 0:01:06]} 19. Rhg1 {[%clk 0:00:29]}  Ne5 {[%clk 0:01:01]} 20. Nf4 {[%clk 0:00:21]}  Qb6 {[%clk 0:00:51]} 21. Qe2 {[%clk 0:00:18]}  Rab8 {[%clk 0:00:45]} 22. b3 {[%clk 0:00:17]}  c4 {[%clk 0:00:45]} 23. Ncd5 {[%clk 0:00:18]}  Bxd5 {[%clk 0:00:44]} 24. Nxd5 {[%clk 0:00:18]}  Qc5 {[%clk 0:00:41]} 25. f6 {[%clk 0:00:11]}  cxb3 {[%clk 0:00:34]} 26. fxg7 {[%clk 0:00:10]}  b2+ {[%clk 0:00:32]} 27. Kb1 {[%clk 0:00:10]}  Qa3 {[%clk 0:00:25]} 28. c4 {[%clk 0:00:05]}  Qa1+ {[%clk 0:00:22]} 29. Kc2 {[%clk 0:00:06]}  Qxa4+ {[%clk 0:00:23]} 30. Kd2 {[%clk 0:00:06]}  Nxc4+ {[%clk 0:00:21]} 31. Ke1 {[%clk 0:00:06]}  b1=Q {[%clk 0:00:20]} 32. Ne7+ {[%clk 0:00:04]}  Kxg7 {[%clk 0:00:20]} 33. Nf5+ {[%clk 0:00:05]}  Kh7 {[%clk 0:00:18]} 34. Kf2 {[%clk 0:00:02]}  Qb6+ {[%clk 0:00:17]} 35. Kf3 {[%clk 0:00:02]}  Qab3+ {[%clk 0:00:16]} 36. Kg4 {[%clk 0:00:03]}  Ne5+ {[%clk 0:00:16]} 37. Kf4 {[%clk 0:00:02]}  gxf5 {[%clk 0:00:08]} 38. Kxf5 {[%clk 0:00:01]}  Qe6+ {[%clk 0:00:07]} 39. Kf4 {[%clk 0:00:02]}  Ng6+ {[%clk 0:00:08]} 40. Kg3 {[%clk 0:00:02]}  Qbb3+ {[%clk 0:00:07]} 41. Kh2 {[%clk 0:00:02]}  Qeh3# {[%clk 0:00:07]} 0-1


[Site "https://www.chess.com"]

[Event "Titled Tuesday Blitz December 27 Late 2022"]
[White "Silvestre, Christian"]
[Black "Sourath Biswas"]
[WhiteFideId "30956269"]
[BlackFideId "35091484"]
[WhiteElo "1942"]
[BlackElo "2281"]
[Result "0-1"]
[Round "04"]
[TimeControl "180+2"]
[Date "2022.12.27"]
[WhiteClock "0:00:53"]
[BlackClock "0:00:37"]

1. d4 {[%clk 0:02:48]}  Nf6 {[%clk 0:02:40]} 2. Bg5 {[%clk 0:02:36]}  d5 {[%clk 0:02:31]} 3. Bxf6 {[%clk 0:02:35]}  gxf6 {[%clk 0:02:16]} 4. e3 {[%clk 0:02:36]}  c5 {[%clk 0:02:14]} 5. Nf3 {[%clk 0:02:35]}  Nc6 {[%clk 0:02:14]} 6. c3 {[%clk 0:02:33]}  Bg4 {[%clk 0:02:10]} 7. Be2 {[%clk 0:02:32]}  e6 {[%clk 0:02:06]} 8. Nbd2 {[%clk 0:02:30]}  Bd6 {[%clk 0:02:04]} 9. Nb3 {[%clk 0:02:28]}  c4 {[%clk 0:02:03]} 10. Nbd2 {[%clk 0:02:28]}  f5 {[%clk 0:01:57]} 11. h3 {[%clk 0:02:23]}  Bh5 {[%clk 0:01:57]} 12. g3 {[%clk 0:02:22]}  b5 {[%clk 0:01:55]} 13. Nh4 {[%clk 0:02:20]}  Bxe2 {[%clk 0:01:54]} 14. Qxe2 {[%clk 0:02:21]}  Qg5 {[%clk 0:01:54]} 15. Ndf3 {[%clk 0:02:08]}  Qg7 {[%clk 0:01:54]} 16. Qc2 {[%clk 0:02:03]}  a5 {[%clk 0:01:51]} 17. b3 {[%clk 0:02:00]}  O-O {[%clk 0:01:48]} 18. bxc4 {[%clk 0:01:56]}  bxc4 {[%clk 0:01:49]} 19. Qa4 {[%clk 0:01:51]}  Ne7 {[%clk 0:01:49]} 20. Ke2 {[%clk 0:01:43]}  Ng6 {[%clk 0:01:47]} 21. Nxg6 {[%clk 0:01:41]}  hxg6 {[%clk 0:01:46]} 22. h4 {[%clk 0:01:38]}  Rfb8 {[%clk 0:01:43]} 23. Rab1 {[%clk 0:01:38]}  Qf8 {[%clk 0:01:41]} 24. Qc6 {[%clk 0:01:35]}  Qd8 {[%clk 0:01:05]} 25. h5 {[%clk 0:01:33]}  Rxb1 {[%clk 0:00:54]} 26. Rxb1 {[%clk 0:01:32]}  gxh5 {[%clk 0:00:54]} 27. Rh1 {[%clk 0:01:30]}  Rc8 {[%clk 0:00:48]} 28. Qa4 {[%clk 0:01:29]}  Qb6 {[%clk 0:00:45]} 29. Qc2 {[%clk 0:01:28]}  Rb8 {[%clk 0:00:44]} 30. Rxh5 {[%clk 0:01:27]}  Qb1 {[%clk 0:00:42]} 31. Qxb1 {[%clk 0:01:07]}  Rxb1 {[%clk 0:00:43]} 32. Nd2 {[%clk 0:00:57]}  Rb2 {[%clk 0:00:43]} 33. a4 {[%clk 0:00:55]}  Rc2 {[%clk 0:00:44]} 34. g4 {[%clk 0:00:53]}  fxg4 {[%clk 0:00:44]} 35. e4 {[%clk 0:00:53]}  dxe4 {[%clk 0:00:41]} 36. Rxa5 {[%clk 0:00:53]}  Bf4 {[%clk 0:00:37]} 0-1


[Site "https://www.chess.com"]

[Event "Titled Tuesday Blitz December 27 Late 2022"]
[White "Sreyas Payyappat"]
[Black "Corredor Castellanos, Camilo"]
[WhiteFideId "46674969"]
[BlackFideId "4425871"]
[WhiteElo "2076"]
[BlackElo "1957"]
[Result "0-1"]
[Round "04"]
[TimeControl "180+2"]
[Date "2022.12.27"]
[WhiteClock "0:00:02"]
[BlackClock "0:00:46"]

1. e4 {[%clk 0:03:00]}  c5 {[%clk 0:02:59]} 2. Nf3 {[%clk 0:03:00]}  d6 {[%clk 0:02:59]} 3. d4 {[%clk 0:03:00]}  cxd4 {[%clk 0:03:00]} 4. Nxd4 {[%clk 0:03:01]}  Nf6 {[%clk 0:03:00]} 5. Nc3 {[%clk 0:02:59]}  a6 {[%clk 0:03:00]} 6. h4 {[%clk 0:02:57]}  h5 {[%clk 0:02:52]} 7. Be3 {[%clk 0:02:54]}  Ng4 {[%clk 0:02:48]} 8. Bd2 {[%clk 0:02:40]}  Nc6 {[%clk 0:02:44]} 9. Nxc6 {[%clk 0:02:37]}  bxc6 {[%clk 0:02:45]} 10. Be2 {[%clk 0:02:37]}  e5 {[%clk 0:02:40]} 11. Bxg4 {[%clk 0:01:59]}  hxg4 {[%clk 0:02:25]} 12. g3 {[%clk 0:01:54]}  Rb8 {[%clk 0:02:23]} 13. b3 {[%clk 0:01:49]}  d5 {[%clk 0:02:06]} 14. Qe2 {[%clk 0:01:23]}  f6 {[%clk 0:01:53]} 15. O-O-O {[%clk 0:01:19]}  Ba3+ {[%clk 0:01:44]} 16. Kb1 {[%clk 0:01:18]}  d4 {[%clk 0:01:38]} 17. Na4 {[%clk 0:01:16]}  Qe7 {[%clk 0:01:30]} 18. Qc4 {[%clk 0:01:12]}  Be6 {[%clk 0:01:23]} 19. Qxc6+ {[%clk 0:01:03]}  Kf7 {[%clk 0:01:23]} 20. h5 {[%clk 0:00:55]}  Rhc8 {[%clk 0:01:21]} 21. Qxa6 {[%clk 0:00:47]}  Ra8 {[%clk 0:01:17]} 22. Qb5 {[%clk 0:00:46]}  Rcb8 {[%clk 0:01:15]} 23. Qc6 {[%clk 0:00:45]}  Rc8 {[%clk 0:00:59]} 24. Qb5 {[%clk 0:00:29]}  Bc4 {[%clk 0:00:47]} 25. bxc4 {[%clk 0:00:02]}  Rab8 {[%clk 0:00:46]} 0-1


[Site "https://www.chess.com"]

[Event "Titled Tuesday Blitz December 27 Late 2022"]
[White "Steinberg, Nitzan"]
[Black "Hnydiuk, Aleksander"]
[WhiteFideId "2801795"]
[BlackFideId "1109057"]
[WhiteElo "2546"]
[BlackElo "2363"]
[Result "1-0"]
[Round "04"]
[TimeControl "180+2"]
[Date "2022.12.27"]
[WhiteClock "0:01:24"]
[BlackClock "0:00:02"]

1. e4 {[%clk 0:02:57]}  e5 {[%clk 0:02:59]} 2. Nf3 {[%clk 0:02:55]}  Nc6 {[%clk 0:02:59]} 3. Bc4 {[%clk 0:02:56]}  Bc5 {[%clk 0:02:57]} 4. c3 {[%clk 0:02:56]}  Nf6 {[%clk 0:02:57]} 5. d3 {[%clk 0:02:57]}  d6 {[%clk 0:02:55]} 6. h3 {[%clk 0:02:56]}  a6 {[%clk 0:02:55]} 7. a4 {[%clk 0:02:56]}  h6 {[%clk 0:02:53]} 8. O-O {[%clk 0:02:57]}  O-O {[%clk 0:02:52]} 9. Nbd2 {[%clk 0:02:53]}  Be6 {[%clk 0:02:49]} 10. Re1 {[%clk 0:02:42]}  Qd7 {[%clk 0:02:34]} 11. b4 {[%clk 0:02:31]}  Bb6 {[%clk 0:02:26]} 12. Bb3 {[%clk 0:02:21]}  Rae8 {[%clk 0:02:15]} 13. Nc4 {[%clk 0:02:14]}  Ba7 {[%clk 0:02:10]} 14. b5 {[%clk 0:02:14]}  Nd8 {[%clk 0:01:50]} 15. bxa6 {[%clk 0:02:06]}  bxa6 {[%clk 0:01:51]} 16. a5 {[%clk 0:02:05]}  Nb7 {[%clk 0:01:33]} 17. Ba4 {[%clk 0:01:52]}  c6 {[%clk 0:01:33]} 18. Ncxe5 {[%clk 0:01:39]}  dxe5 {[%clk 0:01:30]} 19. Nxe5 {[%clk 0:01:40]}  Qc7 {[%clk 0:01:24]} 20. Bf4 {[%clk 0:01:35]}  Nc5 {[%clk 0:00:20]} 21. Bxc6 {[%clk 0:01:26]}  Rc8 {[%clk 0:00:13]} 22. d4 {[%clk 0:01:26]}  Ncd7 {[%clk 0:00:05]} 23. Ng6 {[%clk 0:01:25]}  Qd8 {[%clk 0:00:02]} 24. Nxf8 {[%clk 0:01:24]}  Nxf8 {[%clk 0:00:02]} 25. d5 {[%clk 0:01:24]} 1-0


[Site "https://www.chess.com"]

[Event "Titled Tuesday Blitz December 27 Late 2022"]
[White "Theodorou, Nikolas"]
[Black "Tanenbaum, Zachary"]
[WhiteFideId "4262875"]
[BlackFideId "2060850"]
[WhiteElo "2591"]
[BlackElo "2261"]
[Result "1-0"]
[Round "04"]
[TimeControl "180+2"]
[Date "2022.12.27"]
[WhiteClock "0:00:08"]
[BlackClock "0:00:02"]

1. e4 {[%clk 0:03:00]}  e5 {[%clk 0:02:59]} 2. d4 {[%clk 0:03:01]}  exd4 {[%clk 0:02:58]} 3. c3 {[%clk 0:03:01]}  dxc3 {[%clk 0:02:58]} 4. Bc4 {[%clk 0:03:01]}  cxb2 {[%clk 0:02:58]} 5. Bxb2 {[%clk 0:03:02]}  d5 {[%clk 0:02:58]} 6. Bxd5 {[%clk 0:03:02]}  Nf6 {[%clk 0:02:59]} 7. Bxf7+ {[%clk 0:03:02]}  Kxf7 {[%clk 0:02:59]} 8. Qxd8 {[%clk 0:03:03]}  Bb4+ {[%clk 0:03:00]} 9. Qd2 {[%clk 0:03:04]}  Bxd2+ {[%clk 0:03:01]} 10. Nxd2 {[%clk 0:03:05]}  Re8 {[%clk 0:02:57]} 11. f3 {[%clk 0:03:04]}  c5 {[%clk 0:02:56]} 12. Rc1 {[%clk 0:03:03]}  b6 {[%clk 0:02:55]} 13. Ne2 {[%clk 0:03:02]}  Ba6 {[%clk 0:02:46]} 14. Nf4 {[%clk 0:02:21]}  Nbd7 {[%clk 0:02:29]} 15. Kf2 {[%clk 0:02:08]}  g5 {[%clk 0:02:27]} 16. Ne2 {[%clk 0:02:04]}  Ne5 {[%clk 0:02:21]} 17. Bxe5 {[%clk 0:02:03]}  Rxe5 {[%clk 0:02:22]} 18. h4 {[%clk 0:01:50]}  g4 {[%clk 0:01:59]} 19. Ng3 {[%clk 0:01:47]}  Rd8 {[%clk 0:01:54]} 20. Nb1 {[%clk 0:01:44]}  Re7 {[%clk 0:01:38]} 21. Rhd1 {[%clk 0:01:41]}  Red7 {[%clk 0:01:37]} 22. Rxd7+ {[%clk 0:01:41]}  Rxd7 {[%clk 0:01:38]} 23. Ke3 {[%clk 0:01:38]}  Rd3+ {[%clk 0:01:36]} 24. Kf4 {[%clk 0:01:38]}  gxf3 {[%clk 0:01:33]} 25. gxf3 {[%clk 0:01:39]}  c4 {[%clk 0:01:28]} 26. a4 {[%clk 0:01:04]}  Nd7 {[%clk 0:01:06]} 27. Nf5 {[%clk 0:01:00]}  Nc5 {[%clk 0:01:05]} 28. Rg1 {[%clk 0:00:27]}  Ne6+ {[%clk 0:01:01]} 29. Ke5 {[%clk 0:00:25]}  c3 {[%clk 0:00:27]} 30. Rc1 {[%clk 0:00:25]}  Rxf3 {[%clk 0:00:22]} 31. Nxc3 {[%clk 0:00:25]}  Nc5 {[%clk 0:00:21]} 32. Rc2 {[%clk 0:00:21]}  Nd3+ {[%clk 0:00:20]} 33. Kd4 {[%clk 0:00:20]}  Nb4 {[%clk 0:00:20]} 34. Rc1 {[%clk 0:00:18]}  Rd3+ {[%clk 0:00:20]} 35. Ke5 {[%clk 0:00:19]}  Nc6+ {[%clk 0:00:18]} 36. Kf4 {[%clk 0:00:18]}  Nb4 {[%clk 0:00:14]} 37. Nb5 {[%clk 0:00:17]}  Rd7 {[%clk 0:00:11]} 38. Rg1 {[%clk 0:00:14]}  Nd3+ {[%clk 0:00:11]} 39. Ke3 {[%clk 0:00:14]}  Nc5 {[%clk 0:00:08]} 40. Nbd4 {[%clk 0:00:11]}  Kf6 {[%clk 0:00:04]} 41. Nh6 {[%clk 0:00:08]}  Ke5 {[%clk 0:00:04]} 42. Rg5+ {[%clk 0:00:07]}  Kd6 {[%clk 0:00:04]} 43. e5+ {[%clk 0:00:06]}  Kc7 {[%clk 0:00:04]} 44. e6 {[%clk 0:00:06]}  Re7 {[%clk 0:00:03]} 45. Nhf5 {[%clk 0:00:07]}  Re8 {[%clk 0:00:03]} 46. Rg7+ {[%clk 0:00:07]}  Kb8 {[%clk 0:00:03]} 47. Nc6+ {[%clk 0:00:07]}  Kc8 {[%clk 0:00:02]} 48. Nd6# {[%clk 0:00:08]} 1-0


[Site "https://www.chess.com"]